bitfinex/quotes_SOLUSD_20230105
["timestamp","ask_amount","ask_price","bid_price","bid_amount"]
[1672892881929,56.13,13.369,13.358,20.0]
[1672892882151,56.13,13.369,13.359,17.0]
[1672892882341,175.7427,13.37,13.359,17.0]
[1672892882552,119.6127,13.37,13.36,224.4]
[1672892882769,119.6127,13.37,13.361,17.0]
[1672892883184,119.6127,13.37,13.36,17.0]
[1672892883504,56.11,13.375,13.36,29.74]
[1672892883709,117.5353,13.377,13.362,244.4]
[1672892884037,117.5353,13.377,13.364,20.0]
[1672892884240,173.6353,13.377,13.366,20.0]
[1672892884453,117.5353,13.377,13.367,17.0]
[1672892888445,117.5353,13.377,13.369,20.0]
[1672892888660,117.5353,13.377,13.37,17.0]
[1672892890252,117.5353,13.377,13.37,20.0]
[1672892890443,117.5353,13.377,13.371,17.0]
[1672892893703,117.5353,13.377,13.37,17.0]
[1672892893916,117.5353,13.377,13.37,20.0]
[1672892894124,117.5353,13.377,13.371,17.0]
[1672892895510,114.7735,13.379,13.371,17.0]
[1672892896557,112.8115,13.384,13.372,20.0]
[1672892896768,112.8115,13.384,13.373,241.4]
[1672892896957,112.8115,13.384,13.375,20.0]
[1672892897172,112.8115,13.384,13.376,17.0]
[1672892898130,56.05,13.388,13.377,244.4]
[1672892898344,110.6561,13.389,13.378,17.0]
[1672892898546,110.6561,13.389,13.379,20.0]
[1672892898740,110.6561,13.389,13.38,17.0]
[1672892898954,110.6561,13.389,13.38,241.4]
[1672892899381,110.6561,13.389,13.38,39.34229846]
[1672892899610,110.6561,13.389,13.38,17.0]
[1672892899611,20.0,13.387,13.38,17.0]
[1672892900329,20.0,13.387,13.375,56.11]
[1672892900526,20.0,13.385,13.371,224.4]
[1672892902872,56.06,13.386,13.373,263.74229846]
[1672892903192,56.06,13.386,13.374,40.0]
[1672892903377,56.06,13.386,13.375,17.0]
[1672892907812,56.06,13.387,13.375,17.0]
[1672892908125,20.0,13.386,13.375,17.0]
[1672892909061,56.06,13.387,13.375,17.0]
[1672892909283,20.0,13.387,13.377,20.0]
[1672892909475,56.05,13.388,13.378,17.0]
[1672892910123,56.05,13.388,13.378,20.0]
[1672892910331,56.05,13.388,13.379,17.0]
[1672892910952,166.7061,13.389,13.378,17.0]
[1672892911472,166.7061,13.389,13.378,263.84349717]
[1672892911692,110.6561,13.389,13.378,263.84349717]
[1672892912316,110.6561,13.389,13.379,20.0]
[1672892912524,110.6561,13.389,13.38,17.0]
[1672892914428,110.6561,13.389,13.379,73.09]
[1672892914622,110.6561,13.389,13.379,17.0]
[1672892917682,110.6561,13.389,13.376,20.0]
[1672892918416,110.6561,13.389,13.376,246.84349717]
[1672892918637,110.6561,13.389,13.377,20.0]
[1672892918824,20.0,13.388,13.375,56.11]
[1672892919160,76.05,13.388,13.376,17.0]
[1672892919376,76.05,13.388,13.375,17.0]
[1672892919567,76.05,13.388,13.375,241.4]
[1672892919991,76.05,13.388,13.375,17.0]
[1672892920312,56.05,13.388,13.375,39.44349717]
[1672892920514,56.05,13.388,13.375,319.95349717]
[1672892920733,56.05,13.388,13.376,20.0]
[1672892920922,56.05,13.388,13.377,17.0]
[1672892922103,110.6561,13.389,13.377,17.0]
[1672892922292,110.6561,13.389,13.377,73.1]
[1672892922501,110.6561,13.389,13.377,17.0]
[1672892925028,110.6561,13.389,13.377,39.44349717]
[1672892926085,110.6561,13.389,13.377,263.84349717]
[1672892926722,110.6561,13.389,13.378,300.5]
[1672892926933,110.6561,13.389,13.38,20.0]
[1672892927154,110.6561,13.389,13.381,17.0]
[1672892927548,110.6561,13.389,13.38,17.0]
[1672892936594,110.6561,13.389,13.379,17.0]
[1672892936801,110.6561,13.389,13.379,20.0]
[1672892937013,110.6561,13.389,13.38,17.0]
[1672892937204,110.6561,13.389,13.377,78.54349717]
[1672892937205,110.6561,13.389,13.376,56.11]
[1672892937421,20.0,13.387,13.372,56.12]
[1672892937646,20.0,13.387,13.375,20.0]
[1672892937861,20.0,13.387,13.373,20.0]
[1672892938256,76.05,13.388,13.373,20.0]
[1672892938257,56.05,13.388,13.373,244.4]
[1672892938600,56.05,13.388,13.376,20.0]
[1672892938788,56.05,13.388,13.378,20.0]
[1672892938998,56.05,13.388,13.379,17.0]
[1672892939433,110.6561,13.389,13.378,17.0]
[1672892940482,110.6561,13.389,13.378,20.0]
[1672892940682,110.6561,13.389,13.379,17.0]
[1672892940907,110.6561,13.389,13.377,17.0]
[1672892942288,93.04724317,13.388,13.371,56.13]
[1672892942590,36.99724317,13.387,13.368,56.14]
[1672892942807,20.0,13.385,13.365,20.0]
[1672892943012,20.0,13.384,13.365,20.0]
[1672892943229,20.0,13.383,13.366,56.15]
[1672892943431,36.99724317,13.383,13.367,224.4]
[1672892943649,36.99724317,13.383,13.368,37.0]
[1672892943841,20.0,13.383,13.37,20.0]
[1672892944052,20.0,13.383,13.371,17.0]
[1672892944268,20.0,13.383,13.371,241.4]
[1672892944912,20.0,13.383,13.371,224.4]
[1672892945223,36.99724317,13.383,13.368,20.0]
[1672892945747,36.99724317,13.383,13.37,224.4]
[1672892946478,36.99724317,13.383,13.371,17.0]
[1672892947410,20.0,13.381,13.371,17.0]
[1672892947644,20.0,13.381,13.37,17.0]
[1672892953010,20.0,13.381,13.369,17.0]
[1672892953213,20.0,13.381,13.37,224.4]
[1672892953422,20.0,13.382,13.371,17.0]
[1672892955328,36.99724317,13.382,13.371,17.0]
[1672892955735,36.99724317,13.382,13.37,17.0]
[1672892956087,36.99724317,13.382,13.369,224.4]
[1672892956602,56.08,13.381,13.366,224.4]
[1672892956930,20.0,13.38,13.366,224.4]
[1672892957120,20.0,13.38,13.368,20.0]
[1672892957332,20.0,13.38,13.367,224.4]
[1672892958173,20.0,13.38,13.366,224.4]
[1672892958386,20.0,13.378,13.365,56.15]
[1672892958606,20.0,13.378,13.364,122.59498]
[1672892958607,112.1806,13.377,13.364,108.7806]
[1672892958800,20.0,13.376,13.365,20.0]
[1672892959010,36.99724317,13.376,13.365,20.0]
[1672892959853,16.99724317,13.375,13.365,20.0]
[1672892960060,20.0,13.374,13.363,20.0]
[1672892961431,20.0,13.374,13.364,17.0]
[1672892961635,20.0,13.374,13.365,20.0]
[1672892961822,20.0,13.374,13.366,17.0]
[1672892962352,73.10724317,13.375,13.366,17.0]
[1672892962563,55.19037399,13.376,13.366,17.0]
[1672892963194,16.99724317,13.376,13.367,224.4]
[1672892963499,112.1806,13.377,13.368,17.0]
[1672892964257,115.8761,13.379,13.368,17.0]
[1672892964469,115.8761,13.379,13.37,224.4]
[1672892964779,115.8761,13.379,13.371,17.0]
[1672892966024,115.8761,13.379,13.37,17.0]
[1672892966245,115.8761,13.379,13.37,73.13]
[1672892966562,115.8761,13.379,13.37,17.0]
[1672892967282,115.8761,13.379,13.368,56.14]
[1672892967932,115.8761,13.379,13.367,224.4]
[1672892968249,115.8761,13.379,13.368,56.14]
[1672892968440,115.8761,13.379,13.368,20.0]
[1672892968977,56.08,13.382,13.368,20.0]
[1672892969191,98.38295528,13.385,13.368,20.0]
[1672892969192,191.9366,13.384,13.37,244.4]
[1672892969398,135.8666,13.384,13.371,17.0]
[1672892969616,152.86384317,13.384,13.371,73.13]
[1672892969826,208.93384317,13.384,13.371,297.53]
[1672892970041,208.93384317,13.384,13.371,241.4]
[1672892970236,20.0,13.383,13.371,17.0]
[1672892970449,76.08,13.383,13.371,17.0]
[1672892970662,20.0,13.381,13.371,17.0]
[1672892970988,36.99724317,13.381,13.371,17.0]
[1672892973409,76.08,13.383,13.371,17.0]
[1672892973721,76.08,13.383,13.37,17.0]
[1672892973926,20.0,13.383,13.37,297.53]
[1672892974141,20.0,13.383,13.37,241.4]
[1672892974990,36.99724317,13.383,13.37,17.0]
[1672892975200,36.99724317,13.383,13.369,17.0]
[1672892975507,16.99724317,13.383,13.371,20.0]
[1672892975708,135.8666,13.384,13.372,17.0]
[1672892975919,135.8666,13.384,13.373,224.4]
[1672892976134,135.8666,13.384,13.374,37.0]
[1672892976343,56.05,13.388,13.374,37.0]
[1672892976545,171.3567,13.39,13.376,224.4]
[1672892976758,115.3067,13.39,13.378,20.0]
[1672892977087,115.3067,13.39,13.379,17.0]
[1672892977513,56.05,13.389,13.379,17.0]
[1672892977709,20.0,13.388,13.379,17.0]
[1672892978135,36.99724317,13.389,13.379,17.0]
[1672892978338,36.99724317,13.389,13.378,17.0]
[1672892978857,16.99724317,13.389,13.378,17.0]
[1672892979200,171.3567,13.39,13.378,17.0]
[1672892979411,115.3067,13.39,13.379,20.0]
[1672892979595,115.3067,13.39,13.38,17.0]
[1672892981188,115.3067,13.39,13.382,20.0]
[1672892981392,115.3067,13.39,13.383,17.0]
[1672892981589,56.03,13.394,13.383,17.0]
[1672892981907,174.0079,13.394,13.383,20.0]
[1672892982115,174.0079,13.394,13.384,17.0]
[1672892982339,174.0079,13.394,13.382,17.0]
[1672892982967,174.0079,13.394,13.382,20.0]
[1672892983163,174.0079,13.394,13.381,17.0]
[1672892983164,174.0079,13.394,13.383,17.0]
[1672892983375,174.0079,13.394,13.381,17.0]
[1672892984017,174.0079,13.394,13.381,20.0]
[1672892984226,174.0079,13.394,13.382,17.0]
[1672892984653,174.0079,13.394,13.379,224.4]
[1672892984654,174.0079,13.394,13.381,17.0]
[1672892984864,174.0079,13.394,13.381,20.0]
[1672892985080,174.0079,13.394,13.382,17.0]
[1672892986443,174.0079,13.394,13.381,17.0]
[1672892986658,17.35194002,13.39,13.379,224.4]
[1672892986850,37.35194002,13.39,13.378,20.0]
[1672892987281,174.0079,13.394,13.379,224.4]
[1672892987605,56.04,13.392,13.38,20.0]
[1672892987802,56.03,13.393,13.38,20.0]
[1672892988009,56.03,13.393,13.381,17.0]
[1672892988222,17.35194002,13.392,13.381,17.0]
[1672892988434,17.35194002,13.392,13.38,17.0]
[1672892989185,17.35194002,13.392,13.38,241.4]
[1672892989395,17.35194002,13.392,13.381,20.0]
[1672892989798,17.35194002,13.392,13.382,17.0]
[1672892990124,174.0079,13.394,13.382,17.0]
[1672892992320,174.0079,13.394,13.382,20.0]
[1672892992530,174.0079,13.394,13.383,17.0]
[1672892993281,174.0079,13.394,13.382,17.0]
[1672892994434,11.15,13.41,13.391,0.1196694]
[1672892994639,119.4223,13.404,13.391,0.1196694]
[1672892994850,17.35194002,13.407,13.391,22.56316657]
[1672892995047,175.3923,13.409,13.393,224.4]
[1672892995256,55.98,13.406,13.395,224.4]
[1672892995482,75.97,13.408,13.396,17.0]
[1672892995903,20.0,13.403,13.396,17.0]
[1672892996858,20.0,13.403,13.391,0.1196694]
[1672892996859,75.99,13.403,13.391,0.1196694]
[1672892997068,20.0,13.401,13.391,0.1196694]
[1672892998335,136.76225679,13.402,13.391,0.1196694]
[1672892998551,20.0,13.401,13.391,0.1196694]
[1672892998954,20.0,13.401,13.391,17.1196694]
[1672892999483,20.0,13.401,13.391,17.05368783]
[1672892999694,20.0,13.401,13.391,0.05368783]
[1672893000967,93.33995679,13.401,13.391,0.05368783]
[1672893002546,31.15,13.4,13.385,20.0]
[1672893002730,31.15,13.4,13.384,20.0]
[1672893002942,73.34995679,13.399,13.384,20.0]
[1672893003367,20.0,13.397,13.384,20.0]
[1672893003570,20.0,13.396,13.379,56.09]
[1672893003787,20.0,13.395,13.379,56.09]
[1672893003997,37.33995679,13.395,13.379,56.09]
[1672893004203,93.36995679,13.394,13.379,56.09]
[1672893004423,20.0,13.393,13.379,20.0]
[1672893004647,37.33995679,13.393,13.379,20.0]
[1672893004855,37.33995679,13.393,13.378,224.4]
[1672893004856,20.0,13.391,13.378,224.4]
[1672893005796,20.0,13.391,13.377,78.54349717]
[1672893006005,56.04,13.392,13.377,302.94349717]
[1672893006218,56.03,13.394,13.379,20.0]
[1672893006426,20.0,13.393,13.38,17.0]
[1672893006636,76.03,13.393,13.38,297.49]
[1672893008325,76.03,13.393,13.38,319.93349717]
[1672893008638,116.3708,13.396,13.382,244.4]
[1672893008844,108.2817,13.398,13.383,37.0]
[1672893009050,108.2817,13.398,13.384,224.4]
[1672893009260,108.2817,13.398,13.385,37.0]
[1672893009478,108.2817,13.398,13.385,93.07]
[1672893010723,164.2917,13.398,13.385,37.0]
[1672893011993,164.2917,13.398,13.386,244.4]
[1672893012213,164.2917,13.398,13.387,17.0]
[1672893012214,108.2817,13.398,13.387,17.0]
[1672893012414,108.2817,13.398,13.387,263.74064987]
[1672893015246,108.2817,13.398,13.387,39.34064987]
[1672893015667,108.2817,13.398,13.388,56.05]
[1672893016006,108.2817,13.398,13.389,17.0]
[1672893018734,20.0,13.418,13.39,322.89349717]
[1672893018735,55.98,13.406,13.39,322.89349717]
[1672893018920,130.2594,13.404,13.391,17.0]
[1672893019130,130.2594,13.404,13.393,20.0]
[1672893019356,130.2594,13.404,13.394,17.0]
[1672893019672,130.2594,13.404,13.395,20.0]
[1672893019890,130.2594,13.404,13.396,17.0]
[1672893020285,55.98,13.406,13.396,17.0]
[1672893020599,175.4957,13.407,13.397,20.0]
[1672893020815,119.5157,13.407,13.398,17.0]
[1672893021877,119.5157,13.407,13.398,297.41]
[1672893022090,129.9076,13.419,13.4,224.4]
[1672893022091,55.93,13.417,13.4,224.4]
[1672893022283,218.4142,13.419,13.401,17.0]
[1672893022498,37.33995679,13.418,13.403,20.0]
[1672893022728,37.33995679,13.418,13.404,37.0]
[1672893022942,93.26995679,13.418,13.404,92.99]
[1672893023247,17.33995679,13.417,13.404,92.99]
[1672893023468,17.33995679,13.417,13.405,20.0]
[1672893023650,17.33995679,13.417,13.406,17.0]
[1672893024294,218.4142,13.419,13.407,20.0]
[1672893024504,235.75415679,13.419,13.408,17.0]
[1672893025333,235.75415679,13.419,13.409,20.0]
[1672893025543,235.75415679,13.419,13.41,17.0]
[1672893025970,235.75415679,13.419,13.409,17.0]
[1672893026396,218.4142,13.419,13.409,17.0]
[1672893027352,218.4142,13.419,13.408,17.0]
[1672893027564,218.4142,13.419,13.408,72.97]
[1672893028616,218.4142,13.419,13.409,20.0]
[1672893028805,73.23995679,13.424,13.41,29.69]
[1672893029015,17.33995679,13.424,13.412,20.0]
[1672893029235,112.8613,13.426,13.413,37.0]
[1672893029450,112.8613,13.426,13.414,20.0]
[1672893029652,112.8613,13.426,13.415,37.0]
[1672893029866,112.8613,13.426,13.416,20.0]
[1672893030186,112.8613,13.426,13.417,17.0]
[1672893030402,112.8613,13.426,13.415,92.94]
[1672893030603,112.8613,13.426,13.415,37.0]
[1672893031017,130.18115953,13.426,13.415,37.0]
[1672893031237,55.9,13.425,13.408,55.97]
[1672893031445,40.0,13.424,13.408,55.97]
[1672893031653,116.6477,13.423,13.407,20.0]
[1672893031870,20.0,13.422,13.407,20.0]
[1672893032084,20.0,13.422,13.408,55.97]
[1672893032299,55.92,13.421,13.409,20.0]
[1672893032716,75.91,13.422,13.408,55.97]
[1672893032914,75.91,13.422,13.41,20.0]
[1672893033127,55.91,13.422,13.411,17.0]
[1672893033672,172.5577,13.423,13.411,17.0]
[1672893034596,17.31985953,13.422,13.411,17.0]
[1672893035136,172.5577,13.423,13.411,17.0]
[1672893035322,116.6477,13.423,13.411,17.0]
[1672893036697,20.0,13.421,13.411,72.96]
[1672893037110,20.0,13.421,13.411,17.0]
[1672893037534,20.0,13.421,13.406,55.98]
[1672893037535,17.31985953,13.42,13.406,55.98]
[1672893037972,17.31985953,13.42,13.407,20.0]
[1672893038387,119.5619,13.419,13.408,55.97]
[1672893038596,119.5619,13.419,13.409,20.0]
[1672893039019,119.5619,13.419,13.41,17.0]
[1672893039214,119.5619,13.419,13.41,72.96]
[1672893039748,119.5619,13.419,13.41,297.36]
[1672893039961,17.31985953,13.422,13.411,20.0]
[1672893040163,55.89,13.427,13.412,37.0]
[1672893040375,112.7852,13.428,13.414,20.0]
[1672893040586,112.7852,13.428,13.415,37.0]
[1672893040903,112.7852,13.428,13.416,20.0]
[1672893041106,112.7852,13.428,13.417,17.0]
[1672893041316,112.7852,13.428,13.415,92.94]
[1672893041535,20.0,13.425,13.41,37.52]
[1672893041743,20.0,13.424,13.405,20.0]
[1672893041958,20.0,13.422,13.405,20.0]
[1672893042169,110.0327,13.421,13.407,20.0]
[1672893042387,127.35255953,13.421,13.407,244.4]
[1672893042600,110.0327,13.421,13.41,20.0]
[1672893043025,110.0327,13.421,13.412,20.0]
[1672893043235,110.0327,13.421,13.413,17.0]
[1672893043448,110.0327,13.421,13.408,55.97]
[1672893043449,127.35255953,13.421,13.408,55.97]
[1672893044482,127.35255953,13.421,13.409,20.0]
[1672893044692,127.35255953,13.421,13.408,55.97]
[1672893044903,127.35255953,13.421,13.406,55.98]
[1672893045113,127.35255953,13.421,13.407,20.0]
[1672893045347,55.92,13.42,13.407,20.0]
[1672893045532,20.0,13.419,13.407,20.0]
[1672893045743,156.37045953,13.419,13.407,20.0]
[1672893046268,156.37045953,13.419,13.406,55.98]
[1672893047231,17.31985953,13.418,13.406,55.98]
[1672893047544,17.31985953,13.418,13.405,55.99]
[1672893047739,73.24985953,13.418,13.404,20.0]
[1672893047951,55.93,13.418,13.405,20.0]
[1672893048281,119.0506,13.419,13.407,20.0]
[1672893048491,119.0506,13.419,13.408,17.0]
[1672893048811,119.0506,13.419,13.409,20.0]
[1672893049021,119.0506,13.419,13.41,17.0]
[1672893053242,119.0506,13.419,13.41,72.96]
[1672893053439,119.0506,13.419,13.41,17.0]
[1672893053870,114.0506,13.419,13.41,17.0]
[1672893054498,114.0506,13.419,13.408,55.97]
[1672893054697,131.37045953,13.419,13.406,75.98]
[1672893055229,114.0506,13.419,13.406,75.98]
[1672893055446,131.37045953,13.419,13.406,75.98]
[1672893055980,131.37045953,13.419,13.407,17.0]
[1672893057436,131.37045953,13.419,13.408,55.97]
[1672893057757,114.0506,13.419,13.409,17.0]
[1672893058384,114.0506,13.419,13.407,55.98]
[1672893058581,114.0506,13.419,13.408,17.0]
[1672893058794,131.37045953,13.419,13.406,55.98]
[1672893059236,55.93,13.418,13.406,55.98]
[1672893059433,131.37045953,13.419,13.407,20.0]
[1672893060392,131.37045953,13.419,13.408,17.0]
[1672893061226,114.0506,13.419,13.408,17.0]
[1672893063559,131.37045953,13.419,13.407,17.0]
[1672893063731,55.93,13.418,13.405,20.0]
[1672893063941,20.0,13.417,13.402,20.0]
[1672893064157,37.31985953,13.417,13.402,20.0]
[1672893064369,73.25985953,13.416,13.402,20.0]
[1672893064578,20.0,13.415,13.402,20.0]
[1672893064798,37.31985953,13.415,13.402,20.0]
[1672893065008,20.0,13.413,13.402,20.0]
[1672893065741,20.0,13.413,13.4,56.01]
[1672893065938,20.0,13.413,13.396,56.02]
[1672893065939,20.0,13.411,13.396,56.02]
[1672893066158,20.0,13.411,13.397,20.0]
[1672893066466,20.0,13.409,13.397,20.0]
[1672893067010,20.0,13.409,13.396,76.02]
[1672893068045,73.27985953,13.41,13.396,56.02]
[1672893068261,20.0,13.408,13.394,117.4262]
[1672893068465,75.97,13.408,13.395,20.0]
[1672893068674,17.31985953,13.407,13.395,20.0]
[1672893068881,20.0,13.406,13.387,56.06]
[1672893069096,20.0,13.406,13.388,20.0]
[1672893069097,20.0,13.404,13.388,20.0]
[1672893069418,37.31985953,13.403,13.388,20.0]
[1672893069632,93.30985953,13.403,13.388,20.0]
[1672893069830,37.31985953,13.402,13.388,20.0]
[1672893070265,73.31985953,13.401,13.389,56.05]
[1672893070895,56.0,13.401,13.39,20.0]
[1672893071087,56.0,13.402,13.39,20.0]
[1672893071735,56.0,13.402,13.391,17.0]
[1672893072791,56.0,13.402,13.39,20.0]
[1672893072979,73.31985953,13.402,13.387,20.0]
[1672893073190,20.0,13.401,13.385,56.07]
[1672893073610,73.32985953,13.4,13.385,56.07]
[1672893073818,114.7511,13.399,13.385,56.07]
[1672893074454,20.0,13.397,13.385,56.07]
[1672893075103,112.2526,13.398,13.385,56.07]
[1672893075416,112.2526,13.398,13.383,20.0]
[1672893075417,129.57245953,13.398,13.384,56.07]
[1672893075599,20.0,13.397,13.385,20.0]
[1672893076875,37.31985953,13.397,13.385,20.0]
[1672893077080,37.31985953,13.397,13.384,20.0]
[1672893077294,56.02,13.396,13.384,20.0]
[1672893077514,20.0,13.395,13.384,20.0]
[1672893078047,73.33985953,13.396,13.384,20.0]
[1672893078241,168.2726,13.398,13.386,20.0]
[1672893078453,168.2726,13.398,13.387,17.0]
[1672893078673,112.2526,13.398,13.387,17.0]
[1672893078992,114.7511,13.399,13.389,20.0]
[1672893079193,114.7511,13.399,13.39,17.0]
[1672893079519,114.7511,13.399,13.39,73.05]
[1672893081822,73.30985953,13.404,13.39,297.45]
[1672893082032,110.497,13.405,13.392,20.0]
[1672893082242,110.497,13.405,13.393,37.0]
[1672893082448,110.497,13.405,13.394,20.0]
[1672893082662,110.497,13.405,13.395,37.0]
[1672893083092,110.497,13.405,13.396,76.02]
[1672893083404,110.497,13.405,13.397,17.0]
[1672893084334,110.497,13.405,13.399,20.0]
[1672893084544,110.497,13.405,13.4,17.0]
[1672893085175,110.497,13.405,13.399,17.0]
[1672893085716,110.497,13.405,13.398,17.0]
[1672893087691,110.497,13.405,13.397,17.0]
[1672893088344,110.497,13.405,13.398,56.02]
[1672893088652,112.5744,13.408,13.4,20.0]
[1672893088867,55.95,13.414,13.4,58.06]
[1672893089063,174.5118,13.416,13.401,17.0]
[1672893089279,174.5118,13.416,13.402,20.0]
[1672893089488,174.5118,13.416,13.403,17.0]
[1672893090764,20.0,13.415,13.402,17.0]
[1672893091603,174.5118,13.416,13.402,17.0]
[1672893091811,20.0,13.411,13.4,38.06]
[1672893092002,20.0,13.411,13.396,56.02]
[1672893092216,20.0,13.409,13.395,76.03]
[1672893092637,75.97,13.409,13.395,76.03]
[1672893092974,92.80904208,13.409,13.395,20.0]
[1672893093162,92.80904208,13.409,13.394,20.0]
[1672893093585,92.80904208,13.409,13.393,20.0]
[1672893093800,92.80904208,13.409,13.392,20.0]
[1672893095475,92.80904208,13.409,13.393,17.0]
[1672893095686,72.80904208,13.409,13.394,20.0]
[1672893095894,51.14993932,13.408,13.395,37.0]
[1672893096107,75.97,13.409,13.395,37.0]
[1672893096432,75.97,13.409,13.397,20.0]
[1672893096633,75.97,13.409,13.398,17.0]
[1672893097259,75.97,13.409,13.397,17.0]
[1672893098214,20.0,13.408,13.397,17.0]
[1672893098632,20.0,13.408,13.396,17.0]
[1672893099473,20.0,13.408,13.395,56.03]
[1672893099684,20.0,13.408,13.394,20.0]
[1672893100949,20.0,13.408,13.395,17.0]
[1672893101988,75.97,13.409,13.396,56.02]
[1672893102205,55.97,13.409,13.397,17.0]
[1672893102428,55.97,13.409,13.396,20.0]
[1672893102622,55.97,13.409,13.397,17.0]
[1672893103359,118.5663,13.41,13.399,20.0]
[1672893103590,118.5663,13.41,13.4,17.0]
[1672893104837,118.5663,13.41,13.399,17.0]
[1672893105993,118.5663,13.41,13.399,20.0]
[1672893106203,118.5663,13.41,13.4,17.0]
[1672893108215,118.5663,13.41,13.397,56.02]
[1672893108636,118.5663,13.41,13.396,20.0]
[1672893109156,118.5663,13.41,13.397,56.02]
[1672893109566,118.5663,13.41,13.398,17.0]
[1672893109987,135.40534208,13.41,13.398,17.0]
[1672893110207,118.5663,13.41,13.397,17.0]
[1672893110408,118.5663,13.41,13.398,20.0]
[1672893110616,118.5663,13.41,13.399,17.0]
[1672893111252,118.5663,13.41,13.398,73.02]
[1672893111676,118.5663,13.41,13.398,17.0]
[1672893112206,118.5663,13.41,13.398,20.0]
[1672893112395,118.5663,13.41,13.399,17.0]
[1672893113136,118.5663,13.41,13.398,17.0]
[1672893114317,115.6077,13.419,13.402,20.0]
[1672893114625,115.6077,13.419,13.403,37.0]
[1672893114839,75.93,13.418,13.403,37.0]
[1672893115363,20.0,13.416,13.403,37.0]
[1672893115578,20.0,13.416,13.401,56.0]
[1672893115782,20.0,13.414,13.397,175.5629]
[1672893115992,20.0,13.414,13.397,119.5429]
[1672893116198,55.95,13.413,13.396,56.02]
[1672893116405,20.0,13.411,13.396,56.02]
[1672893116620,20.0,13.409,13.395,20.0]
[1672893117152,20.0,13.409,13.397,20.0]
[1672893117342,20.0,13.409,13.396,56.02]
[1672893117778,20.0,13.407,13.394,56.03]
[1672893117981,20.0,13.407,13.395,20.0]
[1672893118600,55.98,13.406,13.395,20.0]
[1672893118809,55.98,13.406,13.393,20.0]
[1672893119026,55.98,13.406,13.389,56.05]
[1672893119027,118.087,13.405,13.389,56.05]
[1672893119235,20.0,13.404,13.388,76.06]
[1672893119469,20.0,13.403,13.388,76.06]
[1672893119869,56.0,13.402,13.388,20.0]
[1672893120515,20.0,13.401,13.382,20.0]
[1672893120703,138.9201,13.401,13.384,30.0]
[1672893120914,56.01,13.4,13.384,30.0]
[1672893121119,56.01,13.4,13.386,20.0]
[1672893121349,20.0,13.399,13.386,20.0]